Cogmind - Beta 10.2 @@@ ROGUE MODE // 2022.02.05 @ 11:07:35 Player: Zach Result: Destroyed by L-31 Rogue with Katana Performance ------------- Evolutions (2) 1000 Regions Visited (4) 800 Robots Destroyed (38) 190 Value Destroyed (1017) 1017 Prototype IDs (1) 20 Alien Tech Used (0) 0 Bonus (0) 0 TOTAL SCORE: 3027 Bonus ------- None Cogmind --------- Core Integrity 0/550 Matter 147/300 Energy 100/100 System Corruption 0% Temperature Cool (0) Movement Core (300) Ox5 Location -8/Materials Parts ------- > --- POWER (3) -------- (None) > --- PROPULSION (2) --- (None) > --- UTILITY (3) ------ Large Storage Unit Terrain Scan Processor Advanced Targeting Computer > --- WEAPON (3) ------- (None) > --- INVENTORY (10) --- Aluminum Leg Wheel Target Analyzer Peak State ------------ > --- POWER ------------ Light Ion Engine Light Deuterium Engine Light Deuterium Engine > --- PROPULSION ------- Aluminum Leg Aluminum Leg > --- UTILITY ---------- Thermal Generator Large Storage Unit Terrain Scan Processor > --- WEAPON ----------- Heavy Particle Gun Mini Grenade Launcher > --- INVENTORY -------- Aluminum Leg Wheel Improved Signal Interpreter [Rating: 21] Favorites ----------- Power Light Nuclear Core Engine Ion Engine Power Core Light Nuclear Core Propulsion Aluminum Leg Leg Aluminum Leg Utility Large Storage Unit Device ECM Suite Storage Large Storage Unit Processor Terrain Scan Processor Weapon Minigun Energy Gun Particle Gun Ballistic Gun Minigun Ballistic Cannon Light Cannon Launcher Mini Grenade Launcher Special Weapon Mining Laser Build | -11 -10 -10 -9 -8 ------- Run | Scr Mat Min Mat Mat Slots Evolved 4 | . . . 2 2 Power 2 | . . . 1 1 Propulsion . | . . . . . Utility 1 | . . . . 1 Weapon 1 | . . . 1 . Parts Attached 45 | 7 11 . 14 13 Power 11 | 1 2 . 3 5 Engine 9 | 1 1 . 2 5 Core 2 | . 1 . 1 . Reactor . | . . . . . Propulsion 9 | 2 2 . 3 2 Treads . | . . . . . Leg 9 | 2 2 . 3 2 Wheel . | . . . . . Hover . | . . . . . Flight . | . . . . . Utility 11 | 1 3 . 3 4 Device 5 | . 2 . 1 2 Storage 3 | 1 1 . 1 . Processor 3 | . . . 1 2 Hackware . | . . . . . Protection . | . . . . . Artifact . | . . . . . Weapon 14 | 3 4 . 5 2 Energy Gun 3 | . 1 . 1 1 Energy Cannon . | . . . . . Ballistic Gun 8 | 3 1 . 4 . Ballistic Cannon 1 | . 1 . . . Launcher 1 | . . . . 1 Special Weapon 1 | . 1 . . . Impact Weapon . | . . . . . Slashing Weapon . | . . . . . Piercing Weapon . | . . . . . Special Melee Weapon . | . . . . . Unidentified Prototypes 1 | . . . . 1 Parts Lost 15 | . 2 1 1 11 Power 6 | . . 1 . 5 Propulsion 5 | . 1 . 1 3 Utility 2 | . . . . 2 Weapon 2 | . 1 . . 1 Highest Loss Streak 6 | . 2 1 1 6 Average Slot Usage (%) 83 | . 93 88 86 71 Engine 9 | . 6 . 5 19 Core 6 | . 7 3 10 2 Leg 22 | . 27 28 21 16 Device 7 | . 8 14 4 5 Storage 11 | . 14 14 12 9 Processor 4 | . . . 4 9 Energy Gun 2 | . 7 . 2 . Ballistic Gun 9 | . 12 . 22 2 Ballistic Cannon 4 | . 6 14 . . Launcher 2 | . . . . 8 Special Weapon 3 | . . 14 . . Naked Turns . | . . . . . Heaviest Build 39 | 12 16 13 35 39 Greatest Support 20 | 20 20 20 20 20 Greatest Overweight (x) 6 | 2 1 . 2 6 Average Overweight (x) . | . . . 1 1 Largest Inventory Capacity 10 | 6 6 4 10 10 Average Capacity 7 | 5 5 4 9 10 Most Carried 7 | 2 4 3 7 7 Average Carried 2 | 1 2 2 2 3 Final Capacity 10 | 6 4 4 10 10 Final Carried 3 | 2 3 3 3 3 Class Distribution -------------------- 40% | Scavenger-Mutant 37% | Mutant 18% | Scavenger-Tank 3% | Skirmisher Dominant Class ---------------- Scavenger-Mutant | -10/Materials Mutant | -10/Mines Scavenger-Tank | -9/Materials Scavenger-Mutant | -8/Materials Resources | -11 -10 -10 -9 -8 ----------- Run | Scr Mat Min Mat Mat Matter Collected 1112 | 237 338 61 403 73 Remotely . | . . . . . Salvage Created 1075 | . 248 61 548 218 Parts 77 | . 13 1 36 27 Haulers Intercepted . | . . . . . Recyclers Shooed . | . . . . . Parts Field Recycled . | . . . . . Retrieved Matter . | . . . . . Parts Self-Destructed . | . . . . . Prevented . | . . . . . Kills | -11 -10 -10 -9 -8 ------- Run | Scr Mat Min Mat Mat Combat Hostiles Destroyed 24 | . 6 2 11 5 Guns 17 | . 6 . 11 . Cannons 2 | . . 2 . . AOE 5 | . . . . 5 Classes Destroyed 6 | . 1 . 4 1 Builder 7 | . . . 1 6 Tunneler 1 | . . . . 1 Recycler 3 | . . . 2 1 Watcher 3 | . . . 1 2 Swarmer 3 | . . . 3 . Grunt 21 | . 6 2 8 5 Best Kill Streak 7 | . 6 1 4 7 Combat Bots Only 6 | . 6 1 3 3 Max Kills in Single Turn 4 | . 1 1 2 4 Gunslinging . | . . . . . Exploded 1 | . . . . 1 Melee . | . . . . . Uniques/NPCs Destroyed . | . . . . . Combat | -11 -10 -10 -9 -8 -------- Run | Scr Mat Min Mat Mat Damage Taken 2484 | . 494 209 363 1418 Core 767 | . 95 78 30 564 Absorbed by Shields 192 | . . . 27 165 Core Remaining (%) 74 | 100 . 30 92 . Volleys Fired 98 | . 26 17 34 21 Largest 3 | . 1 2 3 1 Hottest 135 | . 20 135 75 30 Shots Fired 155 | . 26 19 89 21 Gun 123 | . 26 . 89 8 Cannon 17 | . . 17 . . Launcher 13 | . . . . 13 Special 2 | . . 2 . . Kinetic 140 | . 26 17 89 8 Thermal 2 | . . 2 . . Explosive 13 | . . . . 13 Electromagnetic . | . . . . . Robot Hit Streak 14 | . 5 6 14 14 Robot Miss Streak 10 | . 3 3 10 3 Penetration Max . | . . . . . Secondary Targets 2 | . . . 2 . Max Gunslinging Chain 1 | . . . 1 . Shots Hit Robots 85 | . 18 11 41 15 Core Hits 60 | . 11 4 18 27 Critical Hits 2 | . 1 1 . . Critical Kills 1 | . 1 . . . Critical Parts Destroyed 1 | . . 1 . . Melee Attacks . | . . . . . Impact . | . . . . . Slashing . | . . . . . Piercing . | . . . . . Sneak Attacks . | . . . . . Combat Hostiles . | . . . . . Follow-up Attacks . | . . . . . Damage Inflicted 2522 | . 256 299 604 1363 Guns 910 | . 256 . 604 50 Cannons 235 | . . 235 . . Explosions 1377 | . . 64 . 1313 Melee . | . . . . . Ramming . | . . . . . Kinetic 1145 | . 256 235 604 50 Thermal 64 | . . 64 . . Explosive 1313 | . . . . 1313 Electromagnetic . | . . . . . Impact . | . . . . . Slashing . | . . . . . Piercing . | . . . . . Highest Corruption . | . . . . . Average Corruption . | . . . . . Corruption Purged . | . . . . . Overload Shots . | . . . . . Overflow Damage 73 | . . 5 . 68 Projectiles 5 | . . 5 . . Explosions 68 | . . . . 68 Melee . | . . . . . Knockbacks 7 | . . 7 . . Impact . | . . . . . Kinetic 5 | . . 5 . . Secondary 2 | . . 2 . . Self-Inflicted Damage 281 | . . 43 . 238 Shots 9 | . . 1 . 8 Rammed . | . . . . . Targets Rammed . | . . . . . Kicked . | . . . . . Crushed . | . . . . . Highest Temperature 146 | . 7 48 146 10 Average Temperature 38 | . 2 28 47 6 Received Heat Transfer 840 | . 270 90 126 354 Siege Activations . | . . . . . Robots Corrupted . | . . . . . Combat Hostiles . | . . . . . Parts Fried . | . . . . . Impact Corruptions . | . . . . . Robots Melted . | . . . . . Combat Hostiles . | . . . . . Parts Melted . | . . . . . Heat Transferred 100 | . . 100 . . Parts Sabotaged . | . . . . . Parts Stolen . | . . . . . Parts Stripped . | . . . . . Power Chain Reactions . | . . . . . Missiles Intercepted . | . . . . . Alert | -11 -10 -10 -9 -8 ------- Run | Scr Mat Min Mat Mat Peak Influence 294 | . 120 131 277 294 Initial 53 | . . 46 50 53 Average 114 | . 90 117 110 139 Maximum Alert Level 1 | . . . 1 1 Low Security (%) 83 | 100 100 100 88 58 Level 1 16 | . . . 11 41 Level 2 . | . . . . . Level 3 . | . . . . . Level 4 . | . . . . . Level 5 . | . . . . . High Security . | . . . . . Max Security . | . . . . . Squads Dispatched 4 | . . . 1 3 Investigation 2 | . . . . 2 Extermination . | . . . . . Reinforcement 2 | . . . 1 1 Assault . | . . . . . Garrison . | . . . . . Intercept . | . . . . . Construction Impeded 1 | . . . . 1 Haulers Reinforced . | . . . . . Stealth | -11 -10 -10 -9 -8 --------- Run | Scr Mat Min Mat Mat Distress Signals 1 | . . . 1 . Communications Jammed . | . . . . . Distress Signals . | . . . . . Times Spotted 38 | . 6 4 16 12 Peak Tracking Total 5 | . 5 2 5 4 Tactical Retreats 4 | . . 2 2 . Traps | -11 -10 -10 -9 -8 ------- Run | Scr Mat Min Mat Mat Traps Triggered . | . . . . . Indirectly . | . . . . . Trap Hack Attempts . | . . . . . Triggered . | . . . . . Disarmed . | . . . . . Reprogrammed . | . . . . . Reused . | . . . . . Traps Extracted . | . . . . . Installed . | . . . . . Triggered . | . . . . . Machines | -11 -10 -10 -9 -8 ---------- Run | Scr Mat Min Mat Mat Machines Disabled 4 | . . 1 1 2 Max in Single Turn 1 | . . 1 1 1 Machines Sabotaged . | . . . . . Garrisons Compromised . | . . . . . Overloaded Fab Kills . | . . . . . Fab Network Shutdowns . | . . . . . Hacking | -11 -10 -10 -9 -8 --------- Run | Scr Mat Min Mat Mat Machines Accessed 6 | . 1 . 2 3 Terminals 6 | . 1 . 2 3 Fabricators . | . . . . . Repair Stations . | . . . . . Recycling Units . | . . . . . Scanalyzers . | . . . . . Garrison Access . | . . . . . Total Hacks 18 | . 2 . 9 7 Successful 15 | . 2 . 6 7 Failed 3 | . . . 3 . Catastrophic 1 | . . . 1 . Database Lockouts . | . . . . . Manual . | . . . . . Terminals 18 | . 2 . 9 7 Fabricators . | . . . . . Repair Stations . | . . . . . Recycling Units . | . . . . . Scanalyzers . | . . . . . Garrison Access . | . . . . . Terminal Hacks 15 | . 2 . 6 7 Record 4 | . . . 3 1 Robot Analysis 1 | . . . 1 . Emergency Access Points 1 | . . . . 1 Scanalyzer Index 1 | . . . . 1 Alert Level 4 | . 1 . . 3 Unreport Threat 2 | . . . 1 1 Locate Traps 1 | . 1 . . . Zone Layout 1 | . . . 1 . Fabricator Hacks . | . . . . . Repair Station Hacks . | . . . . . Recycling Unit Hacks . | . . . . . Scanalyzer . | . . . . . Garrison Access Hacks . | . . . . . Unauthorized Hacks . | . . . . . Terminals . | . . . . . Fabricators . | . . . . . Repair Stations . | . . . . . Recycling Units . | . . . . . Scanalyzers . | . . . . . Garrison Access . | . . . . . Data Cores Recovered . | . . . . . Used . | . . . . . Hacking Detections 4 | . . . 2 2 Full Trace Events 3 | . . . 1 2 Feedback Events . | . . . . . Feedback Blocked . | . . . . . Robot Schematics Acquired . | . . . . . Robots Built . | . . . . . Matter . | . . . . . Time . | . . . . . Total Robot Build Rating . | . . . . . Part Schematics Acquired . | . . . . . Parts Built . | . . . . . Matter . | . . . . . Time . | . . . . . Total Part Build Rating . | . . . . . Parts Repaired . | . . . . . Time . | . . . . . Parts Recycled . | . . . . . Recycled Matter . | . . . . . Retrieved Matter . | . . . . . Retrieved Components . | . . . . . Parts Scanalyzed . | . . . . . Part Schematics Acquired . | . . . . . Parts Damaged . | . . . . . Bothacking | -11 -10 -10 -9 -8 ------------ Run | Scr Mat Min Mat Mat Used RIF Installer . | . . . . . Robots Hacked . | . . . . . Non-combat . | . . . . . Combat . | . . . . . Robot Hacks Applied . | . . . . . Relay Couplers Released . | . . . . . Robots Rewired . | . . . . . Allies Hacked . | . . . . . Hacks Repelled . | . . . . . Allies | -11 -10 -10 -9 -8 -------- Run | Scr Mat Min Mat Mat Total Allies . | . . . . . Largest Group . | . . . . . Highest-Rated Group . | . . . . . Highest-Rated Ally . | . . . . . Total Orders . | . . . . . Ally Attacks . | . . . . . Total Damage . | . . . . . Kills . | . . . . . Allies Corrupted . | . . . . . Allies Melted . | . . . . . Intel | -11 -10 -10 -9 -8 ------- Run | Scr Mat Min Mat Mat Robot Analysis Total 1 | . . . 1 . Derelict Logs Recovered . | . . . . . Drone Launches . | . . . . . Drone Recoveries . | . . . . . Exploration | -11 -10 -10 -9 -8 ------------- Run | Scr Mat Min Mat Mat Turns Passed 1854 | 63 302 377 523 589 Spaces Moved 857 | 49 178 69 239 322 Core 23 | 14 . . . 9 Treads . | . . . . . Legs 834 | 35 178 69 239 313 Wheels . | . . . . . Hover . | . . . . . Flight . | . . . . . Fastest Speed 50 | 50 120 120 120 120 Average Speed 140 | 107 120 120 150 154 Slowest Speed 350 | 150 150 120 180 350 Overloaded Moves . | . . . . . Propulsion Burnouts . | . . . . . Robots Hopped . | . . . . . Cave-ins Triggered . | . . . . . Exploration Rate (%) 15 | 3 21 12 18 21 Regions Visited 4 Branch Regions 1 Pre-discovered Areas . | . . . . . Known Exits Taken . | . . . . . Unknown Exits Taken 4 | 1 1 1 1 . Scrap Searched . | . . . . . Spaces Dug . | . . . . . Terrain Destroyed 92 | . . 17 . 75 Melee . | . . . . . Projectile . | . . . . . AOE 92 | . . 17 . 75 Terrain Rammed . | . . . . . Walls Destroyed . | . . . . . Machines Disabled . | . . . . . Actions | -11 -10 -10 -9 -8 --------- Run | Scr Mat Min Mat Mat Total 1405 | 56 242 340 364 403 Wait 278 | . 6 253 18 1 Move 853 | 48 177 68 238 322 Hop . | . . . . . Pick Up 71 | 1 12 1 32 25 Fast Attach 7 | 6 1 . . . Attach 27 | . 6 . 11 10 Detach 2 | . 1 . . 1 Swap 11 | 1 4 . 3 3 Drop 58 | . 9 1 28 20 Fire 98 | . 26 17 34 21 Melee . | . . . . . Ram . | . . . . . Kick . | . . . . . Crush . | . . . . . Escape Stasis . | . . . . . Rewire . | . . . . . Trap . | . . . . . Miscellaneous . | . . . . . Route ------- -11/Scrapyard -10/Materials -10/Mines -9/Materials -8/Materials History --------- Turn | Location | Event 2 | -11/Scrapyard | Met Revision 17 22 | -11/Scrapyard | Discovered new exit (range 16) 64 | -11/Scrapyard | Entered Materials 289 | -10/Materials | Discovered new exit (range 16) 366 | -10/Materials | Entered Mines 377 | -10/Mines | Core integrity fell below 50% 389 | -10/Mines | Met a Derelict bent on vengeance 434 | -10/Mines | Discovered new exit (range 5) 646 | -10/Mines | Build established: Mutant 743 | -10/Mines | Entered Materials 743 | -9/Materials | Evolved 2 slots: Power x1, Weapon x1 1244 | -9/Materials | Discovered new exit (range 15) 1265 | -9/Materials | Build established: Scavenger-Tank 1266 | -9/Materials | Entered another Materials area 1266 | -8/Materials | Evolved 2 slots: Power x1, Utility x1 1453 | -8/Materials | Lost 5 parts (2p1n2u) 1780 | -8/Materials | Build established: Scavenger-Mutant 1838 | -8/Materials | Core integrity fell below 50% 1849 | -8/Materials | Core integrity fell below 20% 1855 | -8/Materials | Destroyed by L-31 Rogue with Katana Last Messages --------------- ALERT: Suspicious activity at Terminal M007. Dispatching Investigation squad. Penetrated by Slug. Lgt. Ion Engine destroyed. Penetrated by Slug. Slug penetrates Processing Tank. Terminal disabled. K-01 Serf collects debris. Penetrated by Slug. Lgt. Deuterium Engine destroyed. K-01 Serf collects debris. Penetrated by Slug. Aluminum Leg destroyed. Mni. Grenade Launcher destroyed. Slug penetrates Wall. Aluminum Leg destroyed. Slug penetrates Wall. Lgt. Deuterium Engine destroyed. Penetrated by Slug. Slug penetrates Wall. Map ----- +----------------------------------------------------+ | | | | | ?????????????????????????????????????????????????? | | ?????#???????????????????????????????????????????? | | ???? ?????????????????????????????????????????? | | ????? ?????????????????????????????????????????? | | ????? ?????????????????????????????????????????? | | ????? ?????????????????????????????????????????? | | ?????? ""???????????????????????????????????????? | | ?????? ""???????????????????????????????????????? | | ?????? ""???????????????????????????????????????? | | ??????? ""???????????????????????????????????????? | | ###???? ???????????????????????????????????????? | | #???##+##??????????????????????????????????????? | | #???# ###########????????????????????????????? | | ##### + ! #????????????????????????????? | | ## """ #????????????????????????????? | | ## """"" #???????????? ?????????????? | | ## """"" ########+# ????????????? | | T ## """"" + ????????????? | | " " ## """ # ????????????? | | """ ## # #####+####+???????????????? | | """ ## # #??? #????????????????? | | """ ! ## # #?? #????????????????? | | " ! ###########gh### #????????????????? | | #?????????# t l@ #????????????????? | | #?????????# ### #????????????????? | | !* #?????????# #?? #????????????????? | | #?????????+ #???######????????????????? | | #?????????# ?????????????????????????? | | #?????????# #?????????????????????????? | | ###########?????????# ##?????????????????????????? | | # ##????????????????# ???????????????????????????? | | ####????????????????# ???????????????????????????? | | #???????????????????# ???????????????????????????? | | ????????????????????# ???????????????????????????? | | ????????????????????#+???????????????????????????? | | ?????????????????????????????????????????????????? | | ?????????????????????????????????????????????????? | | ?????????????????????????????????????????????????? | | ?????????????????????????????????????????????????? | | ?????????????????????????????????????????????????? | | ?????????????????????????????????????????????????? | | ?????????????????????????????????????????????????? | | ?????????????????????????????????????????????????? | | ?????????????????????????????????????????????????? | | ?????????????????????????????????????????????????? | | ?????????????????????????????????????????????????? | | ?????????????????????????????????????????????????? | | ?????????????????????????????????????????????????? | +----------------------------------------------------+ Best States ------------- Heat Dissipation 41 Energy Generation 28 Energy Capacity 460 Matter Stores 437 Matter Capacity 450 Sight Range 18 Terrain Scan Density 85 ECM Strength 1 Evasion (%) 40 Targeting Accuracy 8 Item Schematics ----------------- None Robot Schematics ------------------ None Fabricated ------------ Nothing Alien Tech Used ----------------- None Achievements -------------- Everything Is Under Control Risk Taker Challenges ------------ None Game ------ Seed AlertMiningFirepult Manual? 0 Play Time 01:02:46 Cumulative 5.7 hours Start 2022.02.05 @ 09:54:24 End 2022.02.05 @ 11:07:35 Sessions 1 Manual Loads 0 Difficulty Rogue Special Mode None Game No. 5 Rogue 5 Adventurer 0 Explorer 0 Win Type - Total 0 Types 0/0/0/0/0/0/0/0/0 Lore% 1 Gallery% 8 Achievement% 6 Wizard Run 0 Options --------- ASCII 0 Keyboard 0 Movement Arrows Keybinds 0 Fullscreen 1 Font 18/SmallcapsGlow Map View 76x50 Tactical HUD 0 Map Filters NONE Filters NONE Steam 1 RUN: 7ead2605-3d4e-42cb-951b-b1d36dd83fc5